Cogmind - Beta 17 @@@ ROGUE MODE // 2026.06.24 @ 18:17:26 Player: Petvaria Result: Escaped! Performance ------------- Evolutions (9) 4500 Regions Visited (21) 4200 Robots Destroyed (316) 1580 Value Destroyed (12721) 12721 Prototype IDs (36) 720 Alien Tech Used (0) 0 Bonus (24031) 24031 TOTAL SCORE: 47752 Bonus ------- High Alert Combat Kills 1515 Follower Combat Kills 2105 Prayed to X0-1V1 5000 Major X0-1V1 Interference 9200 Met Imprinter 300 Met Warlord at Base 500 MAIN.C Attacked Warlord 500 A7 Reached Mainframe 300 Met R17 at Cetus 500 Met Warlord at Research 2000 Win 3000 Friendly Fire -889 Cogmind --------- Core Integrity 1369/1650 Matter 690/700 Energy 731/755 System Corruption 13% Temperature Cool (16) Movement Walking (102) Location To Epsilon Eridani Parts ------- > --- POWER (4) -------- Reinforced Antimatter Reactor Light Quantum Reactor Light Quantum Reactor (fused) Reinforced Quantum Reactor > --- PROPULSION (9) --- Advanced VSS Leg Biometal Leg Biometal Leg Enhanced Biometal Leg Centrium Leg Centrium Leg Centrium Leg Heavy Shield Leg > --- UTILITY (11) ----- Advanced Heat Sink (fused) Advanced Cooling System Huge Storage Unit Experimental Optical Array Experimental Targeting Computer Experimental Core Analyzer Advanced Transmission Jammer (fused) Advanced Remote Force Field X0-1V1's Piety Tracker > --- WEAPON (2) ------- Vortex Driver Enhanced Hardcell Cannon > --- INVENTORY (25) --- Light Quantum Reactor Biometal Medium Treads Biometal Medium Treads Armored Heavy Treads Biometal Heavy Treads Advanced Heavy Siege Treads Biometal Leg Biometal Leg Biometal Leg Heavy Shield Leg Experimental Core Analyzer Layered Heavy Armor Plating High-powered Tractor Beam Drone Bay (2/2) Enhanced Nova Cannon Hypervelocity Mass Driver Enhanced Hardcell Cannon Enhanced Hardcell Cannon Enhanced Hardcell Cannon Peak State ------------ > --- POWER ------------ Reinforced Antimatter Reactor Light Quantum Reactor Light Quantum Reactor Reinforced Quantum Reactor > --- PROPULSION ------- Biometal Leg Biometal Leg Biometal Leg Enhanced Biometal Leg Centrium Leg Centrium Leg Centrium Leg Heavy Shield Leg > --- UTILITY ---------- Advanced Heat Sink Advanced Cooling System Huge Storage Unit Experimental Optical Array Experimental Targeting Computer Experimental Core Analyzer Advanced Transmission Jammer Advanced Remote Force Field System Mapper X0-1V1's Piety Tracker > --- WEAPON ----------- Enhanced Nova Cannon Enhanced Hardcell Cannon Chaos Jack > --- INVENTORY -------- Light Quantum Reactor Biometal Medium Treads Biometal Medium Treads Armored Heavy Treads Biometal Heavy Treads Advanced Heavy Siege Treads Biometal Leg Biometal Leg Biometal Leg Biometal Leg Heavy Shield Leg Experimental Core Analyzer Advanced Weapon Cycler Layered Heavy Armor Plating Advanced Hardlight Generator High-powered Tractor Beam Vortex Driver Enhanced Hardcell Cannon Enhanced Hardcell Cannon Enhanced Hardcell Cannon [Rating: 231] Favorites ----------- Power Deuterium Engine Engine Deuterium Engine Power Core Neutrino Core Reactor Light Quantum Reactor Propulsion Armored Treads Treads Armored Treads Leg Enhanced Biometal Leg Wheel Compact Wheel Hover Unit Cooled Antigrav System Utility X0-1V1's Piety Tracker Device X0-1V1's Piety Tracker Storage Huge Storage Unit Processor 0b10 Decoder Chip [Scout] Hackware System Mapper Protection Hardened Heavy Armor Plating Weapon Gauss Cannon Energy Gun Plasma Rifle Energy Cannon Ion Cannon Ballistic Gun Gauss Rifle Ballistic Cannon Gauss Cannon Launcher Heavy Rocket Launcher Special Weapon Enhanced Flamer Impact Weapon Flail Special Melee Weapon Chaos Jack Build | -11 -10 -9 -8 -7 -7 -7 -7 -6 -6 -6 -6 -5 -5 -5 -5 -4 -4 -3 -2 -2 -1 ------- Run | Yrd Mat Mat Mat Fac Low Low Zio Pro Fac Ext Cet Fac Upp Upp War Pro Fac Res Res Qua Acc Slots Evolved 18 | . . 2 2 2 . . . . 2 . . 2 . . . . 2 2 2 . 2 Power 2 | . . . . . . . . . . . . . . . . . . 1 . . 1 Propulsion 7 | . . 1 1 . . . . . 1 . . 1 . . . . 1 1 . . 1 Utility 8 | . . 1 . 2 . . . . 1 . . 1 . . . . 1 . 2 . . Weapon 1 | . . . 1 . . . . . . . . . . . . . . . . . . Parts Attached 257 | 7 9 29 32 12 4 2 8 2 6 14 11 25 1 1 20 2 4 10 19 . 39 Power 38 | 1 3 2 3 . 1 . 3 . 1 3 3 3 . . 1 . . 2 2 . 10 Engine 11 | 1 1 2 2 . 1 . 1 . 1 2 . . . . . . . . . . . Core 9 | . 2 . 1 . . . 2 . . 1 . 1 . . 1 . . 1 . . . Reactor 18 | . . . . . . . . . . . 3 2 . . . . . 1 2 . 10 Propulsion 82 | 2 1 10 14 3 . 1 1 . 1 5 1 9 . . 6 . 2 3 8 . 15 Treads 55 | 2 . 10 14 3 . 1 1 . 1 5 1 6 . . . . . . 5 . 6 Leg 23 | . . . . . . . . . . . . 2 . . 4 . 2 3 3 . 9 Wheel 2 | . 1 . . . . . . . . . . 1 . . . . . . . . . Hover 2 | . . . . . . . . . . . . . . . 2 . . . . . . Flight . | . . . . . . . . . . . . . . . . . . . . . . Utility 77 | 2 3 7 7 6 1 . 1 1 3 5 2 10 1 1 8 1 2 1 8 . 7 Device 39 | 1 1 3 3 3 . . 1 . 2 3 . 6 1 . 4 . 1 1 3 . 6 Storage 7 | 1 1 . 1 . . . . . . 1 . . . . 1 . . . 2 . . Processor 9 | . . . . 1 . . . . 1 . 1 . . 1 . . 1 . 3 . 1 Hackware 2 | . . . . 1 . . . . . . . . . . 1 . . . . . . Protection 20 | . 1 4 3 1 1 . . 1 . 1 1 4 . . 2 1 . . . . . Artifact . | . . . . . . . . . . . . . . . . . . . . . . Weapon 60 | 2 2 10 8 3 2 1 3 1 1 1 5 3 . . 5 1 . 4 1 . 7 Energy Gun 12 | . . 3 . . . . 1 . 1 . 2 . . . 2 . . 3 . . . Energy Cannon 14 | . . 3 1 . . . . . . 1 . 2 . . 3 . . 1 1 . 2 Ballistic Gun 19 | 2 2 4 4 1 2 . . . . . 2 1 . . . 1 . . . . . Ballistic Cannon 12 | . . . 2 2 . 1 1 . . . 1 . . . . . . . . . 5 Launcher 2 | . . . 1 . . . . 1 . . . . . . . . . . . . . Special Weapon 1 | . . . . . . . 1 . . . . . . . . . . . . . . Impact Weapon . | . . . . . . . . . . . . . . . . . . . . . . Slashing Weapon . | . . . . . . . . . . . . . . . . . . . . . . Piercing Weapon . | . . . . . . . . . . . . . . . . . . . . . . Special Melee Weapon . | . . . . . . . . . . . . . . . . . . . . . . Unidentified Prototypes 25 | . 1 2 1 . . . 1 . . 1 4 1 . . 6 . . 3 4 . 1 Corrupted Parts 5 | . . . . . . . . . . . 3 . . . . . . 1 1 . . System Corruption 25 | . . . . . . . . . . . 18 . . . . . . 3 4 . . Parts Lost 80 | . . 5 9 1 1 . . 1 1 4 . 34 . . 4 1 2 4 . . 13 Power 15 | . . 3 1 . . . . . . . . 4 . . . . . 1 . . 6 Propulsion 22 | . . 2 1 1 . . . . . 1 . 12 . . . . 1 1 . . 3 Utility 24 | . . . 3 . 1 . . 1 1 1 . 10 . . 2 1 . . . . 4 Weapon 19 | . . . 4 . . . . . . 2 . 8 . . 2 . 1 2 . . . Highest Loss Streak 10 | . . 3 5 1 1 . . 1 1 2 . 10 . . 4 1 1 4 . . 7 To Critical Strikes 4 | . . . . . . . . . . 1 . 3 . . . . . . . . . Average Backups 21 | 5 9 22 23 23 24 24 24 24 24 24 24 20 5 5 8 9 9 9 11 17 21 Power 1 | . 1 . . 1 . 1 1 1 2 2 3 2 . . 1 1 1 1 1 2 1 Propulsion 5 | 3 1 6 5 6 7 6 6 6 5 5 5 3 . . . 2 1 . 2 4 9 Utility 8 | . 1 5 8 9 10 10 11 11 9 9 9 8 3 3 4 4 4 5 3 5 5 Weapon 6 | . 5 10 9 6 6 5 5 6 6 7 6 7 2 2 2 2 1 2 4 5 5 Tool/Special . | . . . . . . . . . . . . . . . . . . . . . . Unused Backups 65 | . 4 3 14 1 1 4 1 1 3 4 5 5 . . 1 . . . 3 . 15 Power 9 | . . . 1 . . . . . 2 . 2 2 . . 1 . . . . . 1 Propulsion 23 | . 3 1 8 . . 2 . . . . . . . . . . . . 1 . 8 Utility 18 | . . . 1 1 . 2 . . 1 4 1 3 . . . . . . . . 5 Weapon 15 | . 1 2 4 . 1 . 1 1 . . 2 . . . . . . . 2 . 1 Tool/Special . | . . . . . . . . . . . . . . . . . . . . . . Average Slot Usage (%) 92 | . 99 98 99 97 93 83 89 94 99 99 94 83 3 9 60 87 87 84 96 100 95 Engine 4 | . 3 5 7 6 7 6 2 . 2 10 6 . . . 6 5 5 1 . . . Core 2 | . 10 4 . . . . 4 7 3 . . 2 . . 2 5 5 5 3 . . Reactor 1 | . . . . . . . . . . . 5 7 . . . . . 1 8 12 13 Treads 23 | . 21 30 32 25 28 25 28 28 31 30 25 22 . . . . . . 9 20 12 Leg 2 | . . . . . . . . . . . . . . . 9 16 18 24 18 8 16 Device 16 | . 3 18 15 16 21 17 13 15 27 18 13 16 3 5 9 16 17 13 18 20 19 Storage 6 | . 14 10 7 6 7 6 7 7 6 6 6 4 . . 4 5 5 4 4 4 3 Processor 2 | . . . . 3 . . . . 1 6 10 5 . 3 3 . 1 4 10 12 11 Protection 6 | . 9 10 7 6 7 6 7 6 2 5 5 6 . . 2 5 5 4 3 4 . Energy Gun 3 | . . 2 9 . . . 2 7 6 2 4 2 . . 1 5 5 5 8 8 1 Energy Cannon 1 | . . 3 . . 4 . . . . 2 5 4 . . 3 5 4 4 4 4 1 Ballistic Gun 8 | . 28 14 3 12 13 12 9 13 11 3 4 6 . . . 3 5 1 . . . Ballistic Cannon 5 | . . . 10 9 2 6 13 7 6 11 3 . . . . . . . . . 3 Peak Build Rating 231 | 7 25 37 49 58 62 63 70 69 73 84 115 127 15 18 129 132 149 165 194 200 231 Average Rating 78 | 5 12 30 45 53 59 61 63 68 70 73 104 108 11 17 73 130 144 153 186 195 223 On Entrance 76 | . 7 25 37 47 57 62 62 68 69 73 76 115 2 15 18 129 132 142 159 193 200 Avg Prop Armor Cover (%) 8 | . 9 . . . 6 . . . . . . 6 . . 11 8 6 10 8 5 3 Naked Turns 35 | . . . . . . . . . . . . 23 12 . . . . . . . . Heaviest Build 216 | 13 94 104 116 116 127 132 141 135 124 140 149 157 1 1 53 49 65 73 189 189 216 Greatest Support 295 | 40 40 60 91 91 83 83 80 80 103 116 150 180 3 3 60 60 90 155 175 175 295 Greatest Overweight (x) 48 | . 5 1 1 1 1 2 1 1 1 1 2 48 . . 2 . . . 1 1 1 Average Overweight (x) . | . 2 1 1 1 1 1 1 1 1 1 . . . . . . . . . 1 . Largest Inventory Capacity 25 | 8 25 25 25 25 25 25 25 25 25 25 25 25 5 5 10 10 10 10 25 25 25 Average Capacity 22 | 7 15 25 25 25 25 25 25 25 25 25 25 24 5 5 9 10 10 10 13 25 25 Most Carried 25 | 7 18 25 25 25 25 25 25 25 25 25 25 25 5 5 10 10 10 10 15 23 25 Average Carried 21 | 5 9 22 24 24 24 24 24 24 24 24 24 21 5 4 9 9 9 9 11 17 24 Final Capacity 25 | 8 25 25 25 25 25 25 25 25 25 25 25 5 5 5 10 10 10 10 25 25 25 Final Carried 25 | 6 18 25 24 25 25 25 25 25 25 25 25 5 5 5 9 10 10 10 15 23 24 Transmogrified Parts 6 | . . . . . . . . . . 6 . . . . . . . . . . . Integrity Recovered 143 | . . . . . . . . . . 143 . . . . . . . . . . . Class Distribution -------------------- 36% | Tank 22% | Scavenger-Tank 11% | Mutant 7% | Scavenger-Mutant 5% | Scavenger-Gunner 4% | Generator-Mutant Dominant Class ---------------- Mutant | -10/Materials Scavenger-Mutant | -9/Materials Scavenger-Tank | -8/Materials Tank | -7/Factory Tank | -7/Lower Caves Tank | -7/Lower Caves Tank | -7/Zion Tank | -6/Proximity Caves Skirmisher | -6/Factory Scavenger-Tank | -6/Extension Scavenger-Tank | -6/Cetus Scavenger-Tank | -5/Factory Mutant | -5/Upper Caves Mutant | -5/Upper Caves Commander-Mutant | -5/Warlord Hacker-Tank | -4/Proximity Caves Hacker-Tank | -4/Factory Scavenger-Gunner | -3/Research Scavenger-Gunner | -2/Research Scavenger-Gunner | -2/Quarantine Generator-Mutant | -1/Access Resources | -11 -10 -9 -8 -7 -7 -7 -7 -6 -6 -6 -6 -5 -5 -5 -5 -4 -4 -3 -2 -2 -1 ----------- Run | Yrd Mat Mat Mat Fac Low Low Zio Pro Fac Ext Cet Fac Upp Upp War Pro Fac Res Res Qua Acc Matter Collected 13902 | 294 397 1406 2237 294 777 454 236 1376 198 1591 343 683 . 34 435 164 34 161 200 380 2208 Remotely 1252 | . . . . 137 . . . . . . . . . . . . . . . . 1115 Salvage Created 13711 | 138 709 2026 2350 379 454 357 . 840 181 876 202 1403 . . . 164 158 376 311 204 2583 Parts 607 | 10 42 101 103 23 17 14 . 30 7 41 6 73 . . . 6 3 13 15 8 95 Haulers Intercepted 14 | . 1 5 5 . . . . . . . . 1 . . . . 1 . 1 . . Recyclers Shooed 19 | . 2 1 3 1 . . . . 1 1 . 5 . . . . . 2 . . 3 Parts Field Recycled . | . . . . . . . . . . . . . . . . . . . . . . Retrieved Matter . | . . . . . . . . . . . . . . . . . . . . . . Parts Self-Destructed 68 | . . . . . 15 7 . 39 . . . . . 2 . 5 . . . . . Prevented 2 | . . . . . . . . 2 . . . . . . . . . . . . . Parts Restored . | . . . . . . . . . . . . . . . . . . . . . . Kills | -11 -10 -9 -8 -7 -7 -7 -7 -6 -6 -6 -6 -5 -5 -5 -5 -4 -4 -3 -2 -2 -1 ------- Run | Yrd Mat Mat Mat Fac Low Low Zio Pro Fac Ext Cet Fac Upp Upp War Pro Fac Res Res Qua Acc Combat Hostiles Destroyed 235 | . 10 32 42 8 10 4 . 19 3 23 1 32 . . . 2 1 4 3 2 39 Guns 89 | . 10 19 14 2 5 3 . 11 2 4 . 11 . . . 2 1 2 . 1 2 Cannons 117 | . . 12 24 3 4 1 . 5 1 11 1 18 . . . . . 1 3 1 32 AOE 21 | . . . 3 3 1 . . 3 . 8 . 2 . . . . . . . . 1 Classes Destroyed 21 | 2 5 4 5 1 1 . . 1 . . . 1 . . . . . . . 1 . Worker 17 | . 3 3 5 1 . . . . 1 1 . 2 . . . . . 1 . . . Builder 7 | . 1 1 . 1 . . . . . . . 2 . . . . . . . . 2 Tunneler 6 | 4 . . 1 . . . . . . . . 1 . . . . . . . . . Hauler 14 | . 1 5 5 . . . . . . . . 1 . . . . 1 . 1 . . Recycler 16 | 1 1 5 2 3 . . . . . 1 . . . . . . . 1 . . 2 Mechanic 3 | . . . 3 . . . . . . . . . . . . . . . . . . Operator 7 | . . 2 1 1 . . . . . 3 . . . . . . . . . . . Watcher 4 | . 1 . 2 . . . . . . . 1 . . . . . . . . . . Swarmer 52 | . . 10 . 4 3 . . 2 . 7 . 17 . . . . 1 . . . 8 Cutter 1 | . . . . . . . . . . . . 1 . . . . . . . . . Grunt 101 | . 10 13 25 . 2 3 . 8 2 10 . 7 . . . . . 4 1 . 16 Brawler 9 | . . . 3 . 1 . . 2 . 1 . 1 . . . . . . . . 1 Duelist 4 | . . . 1 . . . . 2 . . . 1 . . . . . . . . . Researcher 1 | . . . . . . . . . . . . . . . . . . . . 1 . Sentry 28 | . . 7 8 . . 1 . 3 1 5 . . . . . . 1 . . . 2 Demolisher 1 | . . . 1 . . . . . . . . . . . . . . . . . . Hunter 18 | . . 3 3 2 3 . . . . . . 2 . . . 2 . . . 1 2 Programmer 21 | . . . . 2 1 . . 1 . . . 4 . . . . . . 2 1 10 Heavy 2 | . . . 1 . . . . . . . . . . . . . . . . . 1 Behemoth 1 | . . . . . . . . 1 . . . . . . . . . . . . . Cetus Guard 1 | . . . . . . . . . . . 1 . . . . . . . . . . Samaritan 7 | . . . . . 3 4 . . . . . . . . . . . . . . . Butcher 1 | . . . . . . . . . . . 1 . . . . . . . . . . Guerrilla 1 | . . . . . . . . . . . 1 . . . . . . . . . . Best Kill Streak 11 | 3 4 6 5 4 3 4 . 11 2 7 1 7 . . . 2 1 3 3 2 6 Combat Bots Only 11 | . 3 6 4 4 3 4 . 11 2 7 1 5 . . . 2 1 2 3 1 6 Max Kills in Single Turn 4 | 1 2 2 1 3 1 1 . 2 1 4 1 3 . . . 1 1 1 1 1 1 Gunslinging 1 | . . 1 . . . . . . . . . . . . . . . . . . . Exploded 4 | . . . 1 2 1 . . 1 . 4 . 2 . . . . . . . . 1 Melee . | . . . . . . . . . . . . . . . . . . . . . . Uniques/NPCs Destroyed . | . . . . . . . . . . . . . . . . . . . . . . Combat | -11 -10 -9 -8 -7 -7 -7 -7 -6 -6 -6 -6 -5 -5 -5 -5 -4 -4 -3 -2 -2 -1 -------- Run | Yrd Mat Mat Mat Fac Low Low Zio Pro Fac Ext Cet Fac Upp Upp War Pro Fac Res Res Qua Acc Hostile Shots Fired 2105 | . 41 280 191 47 92 30 . 128 18 170 16 352 . . 38 20 100 71 4 6 501 Missed 638 | . 7 66 50 14 22 10 . 42 6 50 5 99 . . 12 6 47 16 3 3 180 Hits 1467 | . 34 214 141 33 70 20 . 86 12 120 11 253 . . 26 14 53 55 1 3 321 Melee 23 | . . . 1 . 3 . . 5 . 1 . 9 . . 4 . . . . . . Projectile 1444 | . 34 214 140 33 67 20 . 81 12 119 11 244 . . 22 14 53 55 1 3 321 AOE 19 | . . 1 . . . . . . . . . 9 . . 9 . . . . . . Critical Strikes 64 | . 2 5 5 3 2 . . 5 . 2 3 14 . . 4 . 2 3 . . 14 Part Disruptions 5 | . . . . . 1 . . . . . . 2 . . . . . . . . 2 Damage Taken 25562 | . 473 2438 2556 755 1228 237 . 1608 185 1163 179 6494 . . 954 237 1063 1312 34 32 4614 Core 2459 | . 56 302 249 58 178 . . 100 18 56 . 750 . . 169 24 103 115 . . 281 Absorbed by Shields 2901 | . . . . . . . . . . 170 80 . . . 173 . . . 34 31 2413 Ignored by Resistances 85 | . . . . . . . . . . . 54 . . . . . . . . . 31 Regen/Repaired (Parts) 1824 | . 171 188 416 . . . 994 . . . . . . . 55 . . . . . . Core Remaining (%) 78 | 100 77 32 58 . . . . 83 . . 91 . . . . 58 91 91 . 100 82 Volleys Fired 851 | 17 40 116 125 30 42 32 1 46 16 59 18 89 . . 12 4 6 24 15 5 154 Largest 4 | 2 2 2 4 4 3 3 1 4 4 4 3 3 . . 2 3 3 3 2 3 3 Hottest 275 | 40 46 91 148 118 118 93 40 168 168 230 201 215 . . 156 186 186 275 208 269 269 Shots Fired 1920 | 34 80 231 368 77 107 55 1 160 43 168 40 214 . . 14 7 16 41 16 13 235 Gun 1035 | 34 80 159 205 40 60 24 . 115 28 65 15 135 . . 1 5 10 25 1 8 25 Cannon 868 | . . 72 158 35 47 31 1 40 15 99 25 78 . . 13 2 6 16 15 5 210 Launcher 17 | . . . 5 2 . . . 5 . 4 . 1 . . . . . . . . . Special . | . . . . . . . . . . . . . . . . . . . . . . Kinetic 1178 | 34 80 152 196 75 66 34 1 117 33 120 22 116 . . . 4 5 1 . . 122 Thermal 684 | . . 79 167 . 41 21 . 38 10 44 18 97 . . 1 1 5 24 14 13 111 Explosive 17 | . . . 5 2 . . . 5 . 4 . 1 . . . . . . . . . Electromagnetic 23 | . . . . . . . . . . . . . . . 9 2 5 5 2 . . Entropic 18 | . . . . . . . . . . . . . . . 4 . 1 11 . . 2 Robot Hit Streak 35 | 9 15 12 35 7 10 11 . 14 8 15 8 17 . . 2 1 6 9 6 10 14 Robot Miss Streak 6 | 2 3 5 6 4 4 4 . 4 2 5 2 4 . . 3 4 3 5 2 . 4 Penetration Max 1 | . . . 1 . . . . 1 . 1 1 1 . . . . . 1 . . . Secondary Targets 1 | . . 1 . . . . . . . . . . . . . . . . . . . Max Gunslinging Chain 1 | . . 1 . . . . . . . . . . . . . . . . . . . Shots Hit Robots 1241 | 24 58 147 275 49 65 35 . 102 24 110 29 118 . . 3 3 8 26 10 9 146 Core Hits 591 | 9 28 59 151 22 25 13 . 46 11 59 9 58 . . 1 3 4 10 6 6 71 Critical Kills 8 | . . . . . 1 . . . . . 1 3 . . . 1 . 1 . . 1 Critical Parts Destroyed 21 | 1 . . . . . . . 2 2 1 . 10 . . . . 1 4 . . . Critical Strikes 67 | 1 . . 3 . 2 1 . 12 3 11 2 15 . . . 1 1 6 . . 9 Burn 13 | . . . 1 . . . . 6 . 2 1 2 . . . . . . . . 1 Meltdown 2 | . . . . . 1 . . . . . . . . . . . . . . . 1 Destroy 27 | 1 . . . . 1 . . 2 2 1 1 12 . . . 1 1 5 . . . Blast 23 | . . . 2 . . 1 . 4 1 8 . . . . . . . . . . 7 Smash 1 | . . . . . . . . . . . . 1 . . . . . . . . . Sunder 1 | . . . . . . . . . . . . . . . . . . 1 . . . Melee Attacks 23 | . . . . . . . . . . . . 1 . . . . . . . . 22 Impact 1 | . . . . . . . . . . . . 1 . . . . . . . . . Slashing . | . . . . . . . . . . . . . . . . . . . . . . Piercing 22 | . . . . . . . . . . . . . . . . . . . . . 22 Sneak Attacks 1 | . . . . . . . . . . . . . . . . . . . . . 1 Combat Hostiles . | . . . . . . . . . . . . . . . . . . . . . . Follow-up Attacks . | . . . . . . . . . . . . . . . . . . . . . . Damage Inflicted 34892 | 193 873 2588 6268 1346 1301 769 . 3179 527 4175 942 4337 . . 213 76 434 1205 509 242 5715 Guns 13874 | 193 863 1610 3074 422 568 241 . 1721 357 944 316 2216 . . . 76 136 463 36 150 488 Cannons 16520 | . . 948 2521 396 733 528 . 621 161 1928 626 1784 . . 79 . 62 742 473 92 4826 Explosions 4158 | . . . 569 520 . . . 837 . 1300 . 282 . . 106 . 205 . . . 339 Melee 64 | . . . . . . . . . . . . 41 . . . . . . . . 23 Ramming 248 | . 10 30 104 8 . . . . 9 3 . 14 . . . . 31 . . . 39 Kinetic 17604 | 193 863 1516 2880 818 628 379 . 1685 341 2193 476 1931 . . . 52 41 48 . . 3560 Thermal 12309 | . . 1042 2715 154 673 390 . 657 177 679 466 2157 . . . 24 300 415 464 242 1754 Explosive 3711 | . . . 569 366 . . . 837 . 1300 . 194 . . 106 . . . . . 339 Electromagnetic 313 | . . . . . . . . . . . . . . . 79 . 62 127 45 . . Impact 41 | . . . . . . . . . . . . 41 . . . . . . . . . Slashing 28 | . . . . . . . . . . . . . . . 28 . . . . . . Piercing 23 | . . . . . . . . . . . . . . . . . . . . . 23 Entropic 615 | . . . . . . . . . . . . . . . . . . 615 . . . Highest Corruption 24 | . . . 5 3 6 18 18 13 . 1 24 17 17 . 5 . . 3 4 4 13 Average Corruption 7 | . . . 4 2 5 17 18 13 . 1 7 16 17 . 2 . . 3 2 3 7 Corruption Purged 11 | . . . . . . . . . . . . . . . 7 . . . 4 . . Corruption Blocked . | . . . . . . . . . . . . . . . . . . . . . . Effects 286 | . . . 29 8 42 59 6 25 . 14 6 48 1 . 2 . . 4 1 2 39 Message Errors 69 | . . . 6 4 13 13 2 6 . 6 . 10 . . . . . . . . 9 Matter Fused 70 | . . . 11 3 9 18 1 8 . 1 2 6 . . 1 . . 1 . 1 8 Heat Flow Errors 33 | . . . . . 2 4 1 2 . 1 2 10 1 . . . . 1 . 1 8 Energy Discharges 29 | . . . 1 . 3 8 . 4 . 3 . 5 . . 1 . . . . . 4 Parts Rejected 1 | . . . . . . . . . . . . . . . . . . . . . 1 Data Loss (minor) 30 | . . . 4 . 6 7 1 1 . 1 1 3 . . . . . 1 . . 5 Data Loss (major) 15 | . . . 3 . 4 1 1 1 . 1 . 2 . . . . . . 1 . 1 Misfires 15 | . . . 2 1 3 2 . . . 1 1 2 . . . . . 1 . . 2 Alerts 3 | . . . . . . 2 . 1 . . . . . . . . . . . . . Misdirections 4 | . . . . . . 1 . . . . . 3 . . . . . . . . . Weapon Failures 17 | . . . 2 . 2 3 . 2 . . . 7 . . . . . . . . 1 Overload Shots 2 | . . . 2 . . . . . . . . . . . . . . . . . . Overflow Damage 792 | . . 20 43 42 45 72 . . . 116 . 86 . . . . . 98 17 . 253 Projectiles 635 | . . 20 35 21 45 72 . . . 41 . 45 . . . . . 98 17 . 241 Explosions 96 | . . . . 21 . . . . . 75 . . . . . . . . . . . Melee 61 | . . . 8 . . . . . . . . 41 . . . . . . . . 12 Knockbacks 94 | . 1 1 37 3 2 1 . 6 3 14 . 1 . . . . . . . . 25 Impact 5 | . 1 1 2 . . . . . . . . . . . . . . . . . 1 Kinetic 86 | . . . 35 3 2 1 . 5 3 14 . 1 . . . . . . . . 22 Secondary 3 | . . . . . . . . 1 . . . . . . . . . . . . 2 Self-Inflicted Damage 778 | . . . . 238 . . . . . . . 163 . . . . 269 . . . 108 Shots 10 | . . . . 3 . . . . . . . 2 . . . . 3 . . . 2 Rammed 18 | . 1 2 10 1 . . . . . 1 . 1 . . . . . . . . 2 Targets Rammed 26 | . 1 2 13 1 . . . . 1 2 . 1 . . . . 3 . . . 2 Kicked 3 | . . . . . . . . . . . . . . . . . 3 . . . . Crushed 5 | . . . 3 . . . . . 1 1 . . . . . . . . . . . Highest Temperature 573 | . 36 255 404 6 223 225 150 400 195 432 363 573 105 . 88 . . . 78 109 414 Average Temperature 85 | . 14 61 75 4 19 47 65 108 85 114 107 131 65 . 28 . . . 28 61 92 Received Heat Transfer 4476 | . 297 537 882 45 108 102 . 777 87 404 9 702 . . 54 . 63 198 . 8 203 Effects 21 | . . . 2 . . . . 4 . 1 . 6 . . . . . . . . 8 Shutdowns 7 | . . . . . . . . 1 . . . 2 . . . . . . . . 4 Energy Bleed 4 | . . . . . . . . 2 . 1 . 1 . . . . . . . . . Interference 4 | . . . 1 . . . . . . . . . . . . . . . . . 3 Matter Decay 2 | . . . . . . . . . . . . 1 . . . . . . . . 1 Short Circuit 2 | . . . 1 . . . . . . . . 1 . . . . . . . . . Damage (minor) 2 | . . . . . . . . 1 . . . 1 . . . . . . . . . Siege Activations . | . . . . . . . . . . . . . . . . . . . . . . Martial Activations . | . . . . . . . . . . . . . . . . . . . . . . Shielding Activations . | . . . . . . . . . . . . . . . . . . . . . . Robots Disrupted . | . . . . . . . . . . . . . . . . . . . . . . Combat Hostiles . | . . . . . . . . . . . . . . . . . . . . . . Robots Corrupted 2 | . . . 1 . . . . . . . . 1 . . . . . . . . . Combat Hostiles 1 | . . . . . . . . . . . . 1 . . . . . . . . . Parts Fried 3 | . . . 3 . . . . . . . . . . . . . . . . . . Impact Corruptions 3 | . . . 1 . . . . . . . . 1 . . . . . . . . 1 Robots Melted 6 | . . 1 1 . 1 . . . . . . . . . . . 1 1 . . 1 Combat Hostiles 3 | . . . 1 . . . . . . . . . . . . . . 1 . . 1 Parts Melted 31 | . . 3 11 1 3 . . 4 . 1 . 3 . . . . . . . 1 4 Heat Transferred 19627 | . . 1776 5169 150 1073 629 . 2050 400 1509 629 2644 . . . 37 398 666 351 333 1813 Parts Sabotaged . | . . . . . . . . . . . . . . . . . . . . . . Parts Stolen . | . . . . . . . . . . . . . . . . . . . . . . Parts Stripped 22 | . . . . . . . . . . . . . . . . . . . . . 22 Power Chain Reactions . | . . . . . . . . . . . . . . . . . . . . . . Alert | -11 -10 -9 -8 -7 -7 -7 -7 -6 -6 -6 -6 -5 -5 -5 -5 -4 -4 -3 -2 -2 -1 ------- Run | Yrd Mat Mat Mat Fac Low Low Zio Pro Fac Ext Cet Fac Upp Upp War Pro Fac Res Res Qua Acc Maximum Alert Level 4 | . . 3 3 2 . . . . . 3 2 3 . . . . 1 . . . 4 Low Security (%) 41 | 100 100 42 6 . . . . . 100 60 . 2 . . . . 70 100 100 100 5 Level 1 20 | . . 20 42 . . . . . . 30 25 8 . . . . 29 . . . 25 Level 2 27 | . . 36 28 99 . . . . . 1 74 67 . . . . . . . . 32 Level 3 11 | . . . 23 . . . . . . 7 . 20 . . . . . . . . 36 Level 4 . | . . . . . . . . . . . . . . . . . . . . . . Level 5 . | . . . . . . . . . . . . . . . . . . . . . . High Security . | . . . . . . . . . . . . . . . . . . . . . . Max Security . | . . . . . . . . . . . . . . . . . . . . . . Peak Influence 1100 | 10 148 714 1008 685 . . . . 114 752 495 846 . . . . 229 197 105 136 1100 Initial 457 | . . . 300 457 . . . . 114 27 412 215 . . . . . 98 105 . 40 Average 326 | 1 15 290 485 569 . . . . 33 221 423 560 . . . . 142 125 22 32 580 Influence Increases 11490 | 25 398 1376 1547 558 230 90 . 639 118 1475 263 1509 . 45 344 56 387 279 128 201 1822 Destroy 0b10 Robot/C 5680 | . 200 740 920 160 200 80 . 500 60 700 160 680 . . 40 40 80 80 60 120 860 Destroy 0b10 Robot/NC 430 | 25 35 95 100 30 . . . . 5 45 10 30 . . . . 5 10 5 15 20 Destroy Leader 1076 | . 44 196 234 30 30 10 . 60 20 96 . 112 . . . 10 12 10 12 10 190 Allied During Kill 605 | . . 34 13 . . . . 49 . 315 65 12 . . 4 6 26 . 12 37 32 Successful Hack 167 | . 27 15 19 6 . . . . . 63 9 . . . . . . . . 10 18 Select Force Hacks 30 | . 30 . . . . . . . . . . . . . . . . . . . . Disable Machine 795 | . 15 15 60 270 . . . . . 15 15 240 . . . . 60 30 . . 75 Destroy Structure 1021 | . 2 15 51 62 . . . . 3 63 4 330 . . . . 84 74 9 9 315 Partial Spotted 30 | . . . . . . . . . . . . . . . . . . . . . 30 Lose Combat Pursuer 1230 | . 45 150 150 . . . . 30 30 30 . 105 . 45 300 . 120 75 30 . 120 Miscellaneous 426 | . . 116 . . . . . . . 148 . . . . . . . . . . 162 Influence Decreases 10390 | 25 398 664 1254 986 787 110 . 457 244 794 615 1146 298 156 579 160 199 280 315 133 790 Entered New Map 2778 | . . . 412 548 215 4 . . 68 29 325 170 278 86 339 104 . 90 82 . 28 Time Decay 6076 | 25 266 516 712 428 562 106 . 403 172 627 230 556 20 70 160 46 149 150 193 93 592 Lost Part 782 | . . 50 90 10 10 . . 10 4 38 . 340 . . 40 10 10 40 . . 130 Lost Ally 622 | . . 98 40 . . . . 44 . 100 60 80 . . 40 . 40 . 40 40 40 Purge Threat 132 | . 132 . . . . . . . . . . . . . . . . . . . . Squads Dispatched 50 | . 1 5 14 2 . . . 1 . 3 . 5 . . . . 2 1 1 3 12 Investigation 5 | . 1 2 . . . . . . . 1 . . . . . . . . . 1 . Extermination 11 | . . . . 1 . . . . . . . 2 . . . . 1 1 . 1 5 Reinforcement 22 | . . 3 7 1 . . . . . 2 . 3 . . . . 1 . 1 1 3 Assault 4 | . . . 3 . . . . 1 . . . . . . . . . . . . . Garrison 8 | . . . 4 . . . . . . . . . . . . . . . . . 4 Intercept . | . . . . . . . . . . . . . . . . . . . . . . Searches Triggered . | . . . . . . . . . . . . . . . . . . . . . . Construction Impeded 3 | . . . 2 . . . . . . 1 . . . . . . . . . . . Haulers Reinforced . | . . . . . . . . . . . . . . . . . . . . . . Active Scanning Responses . | . . . . . . . . . . . . . . . . . . . . . . Cargo Convoy Interrupts 1 | . . . . . . . . . . . . 1 . . . . . . . . . Stealth | -11 -10 -9 -8 -7 -7 -7 -7 -6 -6 -6 -6 -5 -5 -5 -5 -4 -4 -3 -2 -2 -1 --------- Run | Yrd Mat Mat Mat Fac Low Low Zio Pro Fac Ext Cet Fac Upp Upp War Pro Fac Res Res Qua Acc Distress Signals 37 | . 1 5 8 . . . . . 1 2 1 1 . . 1 . . 1 9 2 5 Communications Jammed 36 | . . . . . . . . . . . . . . . . . . . . . 36 Distress Signals 36 | . . . . . . . . . . . . . . . . . . . . . 36 Times Spotted 510 | . 23 60 87 9 11 4 . 28 9 41 10 48 . 5 49 2 14 9 11 5 85 Peak Tracking Total 15 | . 3 10 5 4 4 3 . 9 5 8 5 9 . 5 15 2 6 5 4 2 10 Tactical Retreats 56 | . 2 7 8 . . . . 2 1 2 . 6 . 3 10 . 3 3 2 . 7 Traps | -11 -10 -9 -8 -7 -7 -7 -7 -6 -6 -6 -6 -5 -5 -5 -5 -4 -4 -3 -2 -2 -1 ------- Run | Yrd Mat Mat Mat Fac Low Low Zio Pro Fac Ext Cet Fac Upp Upp War Pro Fac Res Res Qua Acc Traps Triggered 9 | . 3 . 1 . . . . . . . . . . . . . . . . 2 3 Indirectly . | . . . . . . . . . . . . . . . . . . . . . . Trap Hack Attempts . | . . . . . . . . . . . . . . . . . . . . . . Triggered . | . . . . . . . . . . . . . . . . . . . . . . Disarmed . | . . . . . . . . . . . . . . . . . . . . . . Reprogrammed . | . . . . . . . . . . . . . . . . . . . . . . Reused . | . . . . . . . . . . . . . . . . . . . . . . Traps Extracted . | . . . . . . . . . . . . . . . . . . . . . . Installed . | . . . . . . . . . . . . . . . . . . . . . . Triggered . | . . . . . . . . . . . . . . . . . . . . . . Machines | -11 -10 -9 -8 -7 -7 -7 -7 -6 -6 -6 -6 -5 -5 -5 -5 -4 -4 -3 -2 -2 -1 ---------- Run | Yrd Mat Mat Mat Fac Low Low Zio Pro Fac Ext Cet Fac Upp Upp War Pro Fac Res Res Qua Acc Machines Disabled 60 | . 1 1 4 18 . . . . . 6 1 16 . . 2 . 4 2 . . 5 Max in Single Turn 12 | . 1 1 1 12 . . . . . 1 . 6 . . 1 . 3 1 . . 2 Garrison Access 3 | . . . . . . . . . . . . 1 . . . . . . 1 . 1 Energy Cycler 1 | . . . . . . . . . . 1 . . . . . . . . . . . Machines Repaired . | . . . . . . . . . . . . . . . . . . . . . . Machines Dismantled . | . . . . . . . . . . . . . . . . . . . . . . Machines Sabotaged . | . . . . . . . . . . . . . . . . . . . . . . Overloaded Fab Kills . | . . . . . . . . . . . . . . . . . . . . . . Hacking | -11 -10 -9 -8 -7 -7 -7 -7 -6 -6 -6 -6 -5 -5 -5 -5 -4 -4 -3 -2 -2 -1 --------- Run | Yrd Mat Mat Mat Fac Low Low Zio Pro Fac Ext Cet Fac Upp Upp War Pro Fac Res Res Qua Acc Machines Accessed 67 | . 10 8 12 5 . . . . 2 11 1 2 . . 5 1 . 1 1 2 6 Terminals 46 | . 7 6 8 4 . . . . . 11 1 1 . . . 1 . 1 1 2 3 Fabricators . | . . . . . . . . . . . . . . . . . . . . . . Repair Stations 3 | . 1 1 1 . . . . . . . . . . . . . . . . . . Recycling Units 2 | . 2 . . . . . . . . . . . . . . . . . . . . Scanalyzers 6 | . . 1 2 . . . . . 2 . . . . . . . . . . . 1 Garrison Access 5 | . . . 1 1 . . . . . . . 1 . . . . . . . . 2 Total Hacks 139 | . 22 23 32 7 . . . . 2 17 2 6 . . 11 1 . 1 1 4 10 Successful 75 | . 17 12 13 1 . . . . . 10 1 2 . . 11 1 . 1 . 1 5 Failed 62 | . 5 10 18 6 . . . . 2 7 1 4 . . . . . . 1 3 5 Catastrophic 12 | . . . 2 3 . . . . 1 1 1 1 . . . . . . . . 3 Database Lockouts 2 | . . 1 1 . . . . . . . . . . . . . . . . . . Manual 78 | . 18 17 21 1 . . . . . 8 2 3 . . . . . . . 4 4 Terminals 95 | . 16 18 22 5 . . . . . 17 2 3 . . . 1 . 1 1 4 5 Fabricators . | . . . . . . . . . . . . . . . . . . . . . . Repair Stations 12 | . 4 3 5 . . . . . . . . . . . . . . . . . . Recycling Units 2 | . 2 . . . . . . . . . . . . . . . . . . . . Scanalyzers 10 | . . 2 3 . . . . . 2 . . . . . . . . . . . 3 Garrison Access 9 | . . . 2 2 . . . . . . . 3 . . . . . . . . 2 Terminal Hacks 22 | . 2 . . 1 . . . . . 5 1 . . . 11 1 . 1 . . . Record 10 | . . . . . . . . . . . . . . . 9 1 . . . . . Open Door 7 | . . . . . . . . . . 4 1 . . . 2 . . . . . . Open DSF 1 | . . . . . . . . . . . . . . . . . . 1 . . . Branch Access Points 1 | . . . . 1 . . . . . . . . . . . . . . . . . Unreport Threat 1 | . 1 . . . . . . . . . . . . . . . . . . . . Recall Reinforcements 1 | . . . . . . . . . . 1 . . . . . . . . . . . Hauler Manifests 1 | . 1 . . . . . . . . . . . . . . . . . . . . Fabricator Hacks . | . . . . . . . . . . . . . . . . . . . . . . Repair Station Hacks 10 | . 4 2 4 . . . . . . . . . . . . . . . . . . Scan Component 5 | . 2 1 2 . . . . . . . . . . . . . . . . . . Repair 5 | . 2 1 2 . . . . . . . . . . . . . . . . . . Recycling Unit Hacks . | . . . . . . . . . . . . . . . . . . . . . . Scanalyzer 6 | . . 1 2 . . . . . . . . . . . . . . . . . 3 Retrieve Study 6 | . . 1 2 . . . . . . . . . . . . . . . . . 3 Garrison Access Hacks 2 | . . . . . . . . . . . . 1 . . . . . . . . 1 Seal Access 2 | . . . . . . . . . . . . 1 . . . . . . . . 1 Unauthorized Hacks 35 | . 11 9 7 . . . . . . 5 . 1 . . . . . . . 1 1 Terminals 32 | . 9 8 7 . . . . . . 5 . 1 . . . . . . . 1 1 Botnet 14 | . 3 2 1 . . . . . . 5 . 1 . . . . . . . 1 1 Operators 1 | . 1 . . . . . . . . . . . . . . . . . . . . Skim 17 | . 5 6 6 . . . . . . . . . . . . . . . . . . Fabricators . | . . . . . . . . . . . . . . . . . . . . . . Repair Stations 1 | . . 1 . . . . . . . . . . . . . . . . . . . Patch 1 | . . 1 . . . . . . . . . . . . . . . . . . . Recycling Units 2 | . 2 . . . . . . . . . . . . . . . . . . . . Mask 1 | . 1 . . . . . . . . . . . . . . . . . . . . Tunnel 1 | . 1 . . . . . . . . . . . . . . . . . . . . Scanalyzers . | . . . . . . . . . . . . . . . . . . . . . . Garrison Access . | . . . . . . . . . . . . . . . . . . . . . . Data Cores Recovered 2 | . . . 1 . . . . . . 1 . . . . . . . . . . . Used . | . . . . . . . . . . . . . . . . . . . . . . Hacking Detections 45 | . 3 5 11 4 . . . . 2 9 2 2 . . . . . . 1 1 5 Full Trace Events 1 | . . . . . . . . . . 1 . . . . . . . . . . . Feedback Events . | . . . . . . . . . . . . . . . . . . . . . . Feedback Blocked . | . . . . . . . . . . . . . . . . . . . . . . Robot Schematics Acquired 5 | . . . . . . . 4 . . . . . . . . . . . . 1 . Robots Built . | . . . . . . . . . . . . . . . . . . . . . . Authchips . | . . . . . . . . . . . . . . . . . . . . . . Time . | . . . . . . . . . . . . . . . . . . . . . . Total Robot Build Rating . | . . . . . . . . . . . . . . . . . . . . . . Part Schematics Acquired 20 | . . . . . . . 14 . . . . . . . . . . . . 6 . Parts Built . | . . . . . . . . . . . . . . . . . . . . . . Authchips . | . . . . . . . . . . . . . . . . . . . . . . Time . | . . . . . . . . . . . . . . . . . . . . . . Total Part Build Rating . | . . . . . . . . . . . . . . . . . . . . . . Part Studies Acquired 6 | . . 1 2 . . . . . . . . . . . . . . . . . 3 Parts Repaired 5 | . 2 1 2 . . . . . . . . . . . . . . . . . . Time 160 | . 52 32 76 . . . . . . . . . . . . . . . . . . Parts Recycled . | . . . . . . . . . . . . . . . . . . . . . . Recycled Matter . | . . . . . . . . . . . . . . . . . . . . . . Retrieved Matter . | . . . . . . . . . . . . . . . . . . . . . . Retrieved Components . | . . . . . . . . . . . . . . . . . . . . . . Parts Scanalyzed . | . . . . . . . . . . . . . . . . . . . . . . Part Schematics Acquired . | . . . . . . . . . . . . . . . . . . . . . . Parts Damaged . | . . . . . . . . . . . . . . . . . . . . . . Bothacking | -11 -10 -9 -8 -7 -7 -7 -7 -6 -6 -6 -6 -5 -5 -5 -5 -4 -4 -3 -2 -2 -1 ------------ Run | Yrd Mat Mat Mat Fac Low Low Zio Pro Fac Ext Cet Fac Upp Upp War Pro Fac Res Res Qua Acc Used RIF Installer . | . . . . . . . . . . . . . . . . . . . . . . Robots Hacked . | . . . . . . . . . . . . . . . . . . . . . . Non-combat . | . . . . . . . . . . . . . . . . . . . . . . Combat . | . . . . . . . . . . . . . . . . . . . . . . Robot Hacks Applied . | . . . . . . . . . . . . . . . . . . . . . . Relay Couplers Released 1 | . . . . . . . . . . . . . . . . . . . 1 . . Machine Destruction 1 | . . . . . . . . . . . . . . . . . . . 1 . . Fabnet Peak Effective % . | . . . . . . . . . . . . . . . . . . . . . . Robots Rewired 17 | . . . . . . . . 2 . 10 . . . . 5 . . . . . . Allies Hacked 2 | . . . . . . . . . . 1 . . . . . . . . . . 1 Hacks Repelled . | . . . . . . . . . . . . . . . . . . . . . . Allies | -11 -10 -9 -8 -7 -7 -7 -7 -6 -6 -6 -6 -5 -5 -5 -5 -4 -4 -3 -2 -2 -1 -------- Run | Yrd Mat Mat Mat Fac Low Low Zio Pro Fac Ext Cet Fac Upp Upp War Pro Fac Res Res Qua Acc Total Allies 57 | . . 8 4 . . . 5 2 . 14 . 4 . . 5 3 . . 4 3 5 Largest Group 11 | . . 5 3 . . . 5 5 . 11 6 3 . . 5 3 3 . 4 3 4 Highest-Rated Group 456 | . . 40 142 . . . 147 147 . 456 319 144 . . 283 147 147 . 120 207 213 Highest-Rated Ally 159 | . . 10 142 . . . 51 51 . 159 159 144 . . 68 49 49 . 30 69 58 Total Orders 14 | . . . . . . . . . . . . 8 . . 6 . . . . . . STAY 5 | . . . . . . . . . . . . . . . 5 . . . . . . FOLLOW 1 | . . . . . . . . . . . . . . . 1 . . . . . . EXPLORE 6 | . . . . . . . . . . . . 6 . . . . . . . . . RETURN 2 | . . . . . . . . . . . . 2 . . . . . . . . . Ally Attacks 402 | . . 30 22 . . . . 50 . 121 54 13 . . 12 10 14 . 26 29 21 Total Damage 9983 | . . 252 801 . . . . 1113 . 2257 1249 337 . . 880 308 486 . 494 1101 705 Kills 64 | . . 8 6 . . . . 6 . 18 8 2 . . 2 . 3 . 1 6 4 Allies Corrupted 3 | . . . 1 . . . . . . . . . . . . . . . . 1 1 Allies Melted 1 | . . . . . . . . . . . . . . . . . 1 . . . . X0-1V1 Amusement Gains 297 | . 8 10 20 . . . . 20 10 7 40 65 . . 40 . . 5 . . 72 Good Acts 110 | . . 16 14 4 5 6 . 6 . 10 2 14 1 2 5 3 2 . 6 1 13 Bad Acts 78 | . 1 10 6 3 1 5 . 9 1 4 1 5 . . 3 1 3 5 3 . 17 Intel | -11 -10 -9 -8 -7 -7 -7 -7 -6 -6 -6 -6 -5 -5 -5 -5 -4 -4 -3 -2 -2 -1 ------- Run | Yrd Mat Mat Mat Fac Low Low Zio Pro Fac Ext Cet Fac Upp Upp War Pro Fac Res Res Qua Acc Active Infowar (turns) 8217 | 20 372 524 . 643 . . . . 589 2960 482 853 . . . . 4 . . . 1770 Optics 2957 | . . . . . . . . . . . 350 853 . . . . . . . . 1754 IFF 4 | . . . . . . . . . . . . . . . . . 4 . . . . Terrain 264 | . . . . . . . . . 264 . . . . . . . . . . . . Structural 667 | . . 13 . . . . . . 589 65 . . . . . . . . . . . Seismic 903 | 20 372 511 . . . . . . . . . . . . . . . . . . . Decoding 4363 | . . . . . . . . . 144 2960 482 777 . . . . . . . . . Machine Analysis 643 | . . . . 643 . . . . . . . . . . . . . . . . . Jamming 1516 | . . . . . . . . . . 89 132 . . . . . . . . . 1295 Robot Analysis Total . | . . . . . . . . . . . . . . . . . . . . . . Derelict Logs Recovered 7 | . . . . . 1 2 2 . . . . . 1 . . 1 . . . . . Drone Launches 6 | . . . . . . . . . . . . 6 . . . . . . . . . Drone Recoveries 4 | . . . . . . . . . . . . 4 . . . . . . . . . Decoded 0b10 Intel 34 | . . . . . . . . . 4 16 2 12 . . . . . . . . . Traps 25 | . . . . . . . . . 2 11 . 12 . . . . . . . . . Emergency Access 2 | . . . . . . . . . . 2 . . . . . . . . . . . Exits 7 | . . . . . . . . . 2 3 2 . . . . . . . . . . Exploration | -11 -10 -9 -8 -7 -7 -7 -7 -6 -6 -6 -6 -5 -5 -5 -5 -4 -4 -3 -2 -2 -1 ------------- Run | Yrd Mat Mat Mat Fac Low Low Zio Pro Fac Ext Cet Fac Upp Upp War Pro Fac Res Res Qua Acc Turns Passed 28941 | 241 1546 2703 3238 1042 1660 1644 3036 2361 590 2960 482 1620 46 151 1390 329 379 310 732 612 1869 Spaces Moved 13119 | 120 766 854 1164 382 619 645 1257 879 213 1154 229 712 88 257 1325 230 307 224 455 261 978 Core 465 | 13 . . . . . . . . . . . 31 88 257 76 . . . . . . Treads 9396 | 107 418 854 1164 382 619 645 1257 879 213 1154 229 653 . . . . . . 199 261 362 Legs 2172 | . . . . . . . . . . . . 13 . . 526 230 307 224 256 . 616 Wheels 363 | . 348 . . . . . . . . . . 15 . . . . . . . . . Hover 723 | . . . . . . . . . . . . . . . 723 . . . . . . Flight . | . . . . . . . . . . . . . . . . . . . . . . Fastest Speed 50 | 50 160 240 200 235 246 237 237 250 248 224 156 50 50 50 50 100 100 100 100 225 102 Average Speed 187 | 148 166 240 218 240 246 242 238 250 248 228 166 178 50 50 87 100 100 101 134 225 128 Slowest Speed 2450 | 160 175 240 240 247 247 330 250 250 248 248 341 2450 50 50 176 100 100 110 225 225 225 Overloaded Moves 37 | . . . . . . . . . . . . . . . 37 . . . . . . Propulsion Burnouts . | . . . . . . . . . . . . . . . . . . . . . . Robots Hopped . | . . . . . . . . . . . . . . . . . . . . . . Potential Cave-ins 3 | . . . . . . . . . . . . . . . 3 . . . . . . Cave-ins Triggered . | . . . . . . . . . . . . . . . . . . . . . . Exploration Rate (%) 52 | 8 93 69 94 15 82 82 84 94 8 96 85 36 22 47 92 39 16 7 14 39 26 Regions Visited 21 Branch Regions 11 Pre-discovered Areas 11 | . 2 2 1 . . 1 4 . . . . . . . . 1 . . . . . Known Exits Taken 12 | . . 1 1 1 1 . . 1 1 1 1 . . 1 1 . 1 . 1 . . Unknown Exits Taken 9 | 1 1 . . . . 1 1 . . . . 1 1 . . 1 . 1 . 1 . Scrap Searched 14 | . . . . . 4 3 4 2 . . . . . 1 . . . . . . . Spaces Dug 93 | . . . . 3 . . . 1 . . . 24 . . 4 . 2 . 1 1 57 Terrain Destroyed 658 | . . 8 37 71 2 5 . 55 2 78 2 180 . . 13 1 42 49 4 3 106 Melee . | . . . . . . . . . . . . . . . . . . . . . . Projectile 218 | . . 8 1 3 2 5 . 18 2 19 2 46 . . 5 1 2 9 4 3 88 AOE 440 | . . . 36 68 . . . 37 . 59 . 134 . . 8 . 40 40 . . 18 Terrain Rammed . | . . . . . . . . . . . . . . . . . . . . . . Walls Destroyed . | . . . . . . . . . . . . . . . . . . . . . . Machines Disabled . | . . . . . . . . . . . . . . . . . . . . . . Actions | -11 -10 -9 -8 -7 -7 -7 -7 -6 -6 -6 -6 -5 -5 -5 -5 -4 -4 -3 -2 -2 -1 --------- Run | Yrd Mat Mat Mat Fac Low Low Zio Pro Fac Ext Cet Fac Upp Upp War Pro Fac Res Res Qua Acc Total 15993 | 156 951 1271 1597 452 688 694 1296 960 258 1372 300 892 88 278 1551 322 367 268 563 277 1392 Wait 944 | . 102 210 169 . 12 . . 21 6 13 12 24 . 20 93 85 41 . 35 5 96 Move 13097 | 119 765 853 1163 381 618 644 1256 878 212 1153 228 711 87 256 1324 229 306 223 454 260 977 Hop . | . . . . . . . . . . . . . . . . . . . . . . Pick Up 267 | 13 19 28 38 10 4 6 4 4 7 14 12 19 . 1 16 2 4 3 20 7 36 Fast Attach 89 | . 6 3 8 5 1 2 11 . 2 7 4 . 1 . 12 1 . 7 6 . 13 Attach 137 | 7 1 10 12 4 1 . . 2 3 8 . 31 . 1 14 1 5 5 7 . 25 Detach 24 | . . . . 1 . . . . . . . 1 . . 13 . 1 2 . . 6 Swap 159 | . 9 30 21 9 5 3 9 2 4 12 9 4 . . 2 . . 2 9 . 29 Drop 242 | . 8 19 48 11 5 7 15 2 7 19 17 11 . . 21 . 1 2 17 . 32 Fire 851 | 17 40 116 125 30 42 32 1 46 16 59 18 89 . . 12 4 6 24 15 5 154 Melee 23 | . . . . . . . . . . . . 1 . . . . . . . . 22 Ram . | . . . . . . . . . . . . . . . . . . . . . . Kick 3 | . . . . . . . . . . . . . . . . . 3 . . . . Crush 23 | . 1 2 13 1 . . . . 1 2 . 1 . . . . . . . . 2 Escape Stasis . | . . . . . . . . . . . . . . . . . . . . . . Rewire 134 | . . . . . . . . 5 . 85 . . . . 44 . . . . . . Trap . | . . . . . . . . . . . . . . . . . . . . . . Miscellaneous . | . . . . . . . . . . . . . . . . . . . . . . Route ------- -11/Scrapyard -10/Materials (discovered 5 exits: *Mat x2 / [*Min x2] / [*Sub]) -9/Materials (discovered 6 exits: *Mat x3 / *Min x2 / [*Sto]) -8/Materials (discovered 2 exits: *Fac x2) -7/Factory (discovered 4 exits: *Fac x2 / *Low x2) -7/Lower Caves -7/Lower Caves (discovered 2 exits: *Fac / [*Zio]) -7/Zion -6/Proximity Caves -6/Factory (discovered 2 exits: Low / *Ext) -6/Extension (discovered 3 exits: *Fac x2 / *Cet) -6/Cetus (discovered 2 exits: *Fac / *Arc) -5/Factory (discovered 3 exits: [*Fac x2] / [*Upp]) -5/Upper Caves -5/Upper Caves (discovered 2 exits: [*Fac] / *War) -5/Warlord -4/Proximity Caves -4/Factory -3/Research -2/Research (discovered 2 exits: *Acc / *Qua) -2/Quarantine -1/Access To Epsilon Eridani History --------- Turn | Location | Event 4 | -11/Scrapyard | Discovered new exit (range 16) 242 | -11/Scrapyard | Entered Materials 295 | -10/Materials | Discovered new exit (range 16) 310 | -10/Materials | Build established: Mutant 596 | -10/Materials | Discovered new exit (range 11) 776 | -10/Materials | Learned 2 Mines zone layouts 846 | -10/Materials | Learned location of 1 exit from Storage 958 | -10/Materials | Learned Materials emergency access door positions 967 | -10/Materials | Repaired Lgt. Treads 994 | -10/Materials | Repaired Lgt. Armor Plating 999 | -10/Materials | Learned location of Mines (-10) 1031 | -10/Materials | Learned Storage stockpile data 1052 | -10/Materials | Learned Materials emergency access door positions 1084 | -10/Materials | Learned Recycling recycling unit intel 1111 | -10/Materials | Discovered new exit (range 16) 1126 | -10/Materials | Learned location of 2 exits from Subcaves 1180 | -10/Materials | Learned 4 Subcaves zone layouts 1371 | -10/Materials | Discovered new exit (range 5) 1705 | -10/Materials | Discovered new exit (range 10) 1720 | -10/Materials | Prayed at D.C.S.S. Altar Unit 1788 | -10/Materials | Entered another Materials area 1788 | -9/Materials | Evolved 2 slots: Propulsion x1, Utility x1 1814 | -9/Materials | Discovered new exit (range 12) 1961 | -9/Materials | Utility slot count permanently improved by X0-1V1 (+1) 2241 | -9/Materials | X0-1V1 enhanced Transport squad support 2265 | -9/Materials | X0-1V1 sent you to a vault 2383 | -9/Materials | Lost 3 allies 2392 | -9/Materials | Matter capacity permanently improved by X0-1V1 (+400) 2517 | -9/Materials | X0-1V1 whisked you away to safety 2566 | -9/Materials | Core integrity permanently improved by X0-1V1 (+250) 2744 | -9/Materials | Discovered new exit (range 3) 2890 | -9/Materials | Discovered new exit (range 7) 2998 | -9/Materials | Build established: Scavenger-Mutant 3243 | -9/Materials | Core integrity fell below 50% 3287 | -9/Materials | Lost 3 parts (1p2n) 3381 | -9/Materials | Repaired Hvy. Assault Rifle 3522 | -9/Materials | X0-1V1 foreshadows a heat wave 3565 | -9/Materials | X0-1V1 whisked you away to safety 3767 | -9/Materials | X0-1V1 sent allied G-34 Mercenary (x5) 3812 | -9/Materials | Ambient heat levels rising (+10) 3893 | -9/Materials | Central database locked down 4113 | -9/Materials | Discovered new exit (range 8) 4149 | -9/Materials | X0-1V1 activates XOMVISION 4245 | -9/Materials | Ambient heat levels rising (+10) 4388 | -9/Materials | Learned Storage stockpile data 4417 | -9/Materials | Identified exit to Mines 4435 | -9/Materials | Identified exit to Materials 4444 | -9/Materials | Learned location of Zion (-7) 4446 | -9/Materials | Ambient heat levels falling (-10) 4464 | -9/Materials | Learned Storage stockpile data 4474 | -9/Materials | X0-1V1 added 0b10 threat records associated with you (minor) 4491 | -9/Materials | Entered another Materials area 4491 | -8/Materials | Evolved 2 slots: Propulsion x1, Weapon x1 4558 | -8/Materials | X0-1V1 announced a LAN party 4790 | -8/Materials | Build established: Scavenger-Tank 5048 | -8/Materials | Central database locked down 5179 | -8/Materials | Discovered new exit (range 7) 5257 | -8/Materials | Lost 5 parts (1p1n2u1w) 5293 | -8/Materials | X0-1V1 upgraded hostiles (x2) 5351 | -8/Materials | Identified exit to Factory 5351 | -8/Materials | X0-1V1 revealed exit location to -7/Factory 5402 | -8/Materials | X0-1V1 redirected Transport squads to designated parking area 6027 | -8/Materials | Garrison activated, responded to threat 6891 | -8/Materials | First assault squad dispatched 6973 | -8/Materials | X0-1V1 downgraded hostiles (x2) 7192 | -8/Materials | Learned location of Extension (-6) 7282 | -8/Materials | X0-1V1 sent you to a vault 7358 | -8/Materials | Repaired Hrd. Medium Armor Plating 7397 | -8/Materials | Repaired Arm. Treads 7414 | -8/Materials | Weapon slot count temporarily expanded by X0-1V1 (+1) 7427 | -8/Materials | Garrison activated, responded to threat 7438 | -8/Materials | Build established: Tank 7475 | -8/Materials | X0-1V1 sent allied H-71 Marshal (x1) 7729 | -8/Materials | Entered Factory 7729 | -7/Factory | Evolved 2 slots: Utility x2 7853 | -7/Factory | Identified exit to Lower Caves 8028 | -7/Factory | Identified exit to Factory 8028 | -7/Factory | X0-1V1 revealed exit location to -6/Factory 8379 | -7/Factory | X0-1V1 sent hostile H-55 Commando (x2) 8548 | -7/Factory | Discovered exit to Factory (range 15) 8771 | -7/Factory | Entered Lower Caves 9249 | -7/Lower Caves | Identified exit to Lower Caves 9249 | -7/Lower Caves | X0-1V1 revealed exit location to -7/Lower Caves 9629 | -7/Lower Caves | Learned Factory garrison access intel 9750 | -7/Lower Caves | X0-1V1 sent hostile H-55 Commando (x3) 10431 | -7/Lower Caves | Entered another Lower Caves area 10468 | -7/Lower Caves | X0-1V1 vaporized surrounding terrain (radius 23) 10494 | -7/Lower Caves | Discovered exit to Factory (range 16) 10576 | -7/Lower Caves | System corruption reached 10% 10984 | -7/Lower Caves | Core integrity restored by X0-1V1 (+210) 11199 | -7/Lower Caves | Learned Factory stockpile data 11221 | -7/Lower Caves | X0-1V1 activates XOMVISION 11357 | -7/Lower Caves | Weapon slot count temporarily expanded by X0-1V1 (+4) 11371 | -7/Lower Caves | X0-1V1 sent you into danger 11373 | -7/Lower Caves | Attracted the attention of an 0b10 checkpoint 11411 | -7/Lower Caves | X0-1V1 mutated your Utility slot to Weapon slot 11422 | -7/Lower Caves | Discovered new exit (range 10) 12075 | -7/Lower Caves | Entered Zion 12182 | -7/Zion | Given A8's code to call for help 12203 | -7/Zion | System corruption cleaned by Quarantine Array 12446 | -7/Zion | Discovered new exit (range 10) 12633 | -7/Zion | Learned Factory emergency access door positions 12659 | -7/Zion | Learned Factory emergency access door positions 13729 | -7/Zion | Learned location of Warlord (-5) 14246 | -7/Zion | Gained Derelict followers 14471 | -7/Zion | Met Imprinter 14788 | -7/Zion | Visited the Megawrench Repair Shop 14788 | -7/Zion | Megawrench repaired 12 parts 15047 | -7/Zion | Found Prototype Device 15047 | -7/Zion | Identified Mobile Refinery Mk. CCLXVII 15111 | -7/Zion | Entered Proximity Caves 15111 | -6/Proximity Caves | Accompanied by 5 allies 15463 | -6/Proximity Caves | Spotted B-75 Beast 15514 | -6/Proximity Caves | Destroyed B-75 Beast 15530 | -6/Proximity Caves | Lost 4 allies 15661 | -6/Proximity Caves | Attracted the attention of an 0b10 checkpoint 16053 | -6/Proximity Caves | X0-1V1 vaporized surrounding terrain (radius 21) 16260 | -6/Proximity Caves | Attracted the attention of an 0b10 outpost 16356 | -6/Proximity Caves | Destroyed 11 combat bots 16915 | -6/Proximity Caves | X0-1V1 revealed exit location to -6/Factory 17047 | -6/Proximity Caves | X0-1V1 sent hostile Y-54 Guardian (x1) 17472 | -6/Proximity Caves | Entered Factory 17472 | -6/Factory | Evolved 2 slots: Propulsion x1, Utility x1 17475 | -6/Factory | Loaded intel: 4 garrison access locations 17950 | -6/Factory | Identified exit to Extension 18039 | -6/Factory | Identified exit to Lower Caves 18062 | -6/Factory | Entered Extension 18463 | -6/Extension | X0-1V1 added 0b10 threat records associated with you (minor) 18530 | -6/Extension | X0-1V1 mutated your Weapon slot to Power slot 19084 | -6/Extension | X0-1V1 activates XOMVISION 19125 | -6/Extension | Build established: Commander-Tank 19162 | -6/Extension | Rescued A7 19444 | -6/Extension | Spotted B-75 Beast 19449 | -6/Extension | Spotted B-75 Beast 19449 | -6/Extension | Allies destroyed B-75 Beast 19460 | -6/Extension | Allies destroyed B-75 Beast 19490 | -6/Extension | Identified exit to Factory 19492 | -6/Extension | Lost 5 allies 19676 | -6/Extension | Rescued a captive Derelict 19781 | -6/Extension | Build established: Scavenger-Tank 20059 | -6/Extension | Forcibly received Sfc. Transmogifier from X0-1V1 20094 | -6/Extension | Rescued a captive Derelict 20308 | -6/Extension | Rescued a captive Derelict 20710 | -6/Extension | X0-1V1 destroyed Energy Cycler 20710 | -6/Extension | Energy Cycler disabled 20710 | -6/Extension | Rescued a captive Derelict 20711 | -6/Extension | Rescued a captive Derelict 20773 | -6/Extension | Destroyed 7 combat bots 20881 | -6/Extension | Identified exit to Cetus 20912 | -6/Extension | X0-1V1 vaporized surrounding terrain (radius 21) 21022 | -6/Extension | Entered Cetus 21022 | -6/Cetus | Accompanied by 6 allies (A7) 21027 | -6/Cetus | Acquired a Cetus Manufacturing Module code from A7 21052 | -6/Cetus | Spotted Cetus Guard 21053 | -6/Cetus | Spotted Cetus Guard 21057 | -6/Cetus | Allies destroyed Cetus Guard 21057 | -6/Cetus | Spotted Cetus Guard 21057 | -6/Cetus | Spotted Cetus Guard 21064 | -6/Cetus | Allies destroyed Cetus Guard 21079 | -6/Cetus | Allies destroyed Cetus Guard 21079 | -6/Cetus | Allies destroyed Cetus Guard 21100 | -6/Cetus | Build established: Derelict-Tank 21144 | -6/Cetus | Cetus Manufacturing Module disabled 21216 | -6/Cetus | Failed to start Cetus Manufacturing Module 21230 | -6/Cetus | Escorted A7 to Cetus Mainframe 21232 | -6/Cetus | Identified exit to Archives 21389 | -6/Cetus | Spotted Cetus Guard 21394 | -6/Cetus | Spotted Cetus Guard 21398 | -6/Cetus | Spotted Cetus Guard 21409 | -6/Cetus | Build established: Scavenger-Tank 21411 | -6/Cetus | Allies destroyed Cetus Guard 21411 | -6/Cetus | Spotted Cetus Guard 21412 | -6/Cetus | Destroyed Cetus Guard 21420 | -6/Cetus | Allies destroyed Cetus Guard 21430 | -6/Cetus | Allies destroyed Cetus Guard 21446 | -6/Cetus | Lost 4 allies 21457 | -6/Cetus | Met Revision 17 21477 | -6/Cetus | System corruption reached 10% 21504 | -6/Cetus | Entered Factory 21504 | -5/Factory | Accompanied by 1 ally (A7) 21504 | -5/Factory | Evolved 2 slots: Propulsion x1, Utility x1 21509 | -5/Factory | Received a hacking code to weaken MAIN.C 22282 | -5/Factory | System corruption reached 10% 22297 | -5/Factory | X0-1V1 sent allied C-35 Carver (x4) 22323 | -5/Factory | Lost 3 parts (2u1w) 22349 | -5/Factory | Lost 4 allies 22409 | -5/Factory | Lost 4 parts (1p2n1u) 22627 | -5/Factory | Discovered new exit (range 13) 22636 | -5/Factory | Cargo convoy interrupted 22746 | -5/Factory | Discovered new exit (range 4) 22899 | -5/Factory | Lost 6 parts (3n2u1w) 22961 | -5/Factory | Lost 9 parts (1p3n2u3w) 23097 | -5/Factory | Core integrity fell below 50% 23101 | -5/Factory | Released all parts (2) 23102 | -5/Factory | X0-1V1 sent you into danger 23105 | -5/Factory | Discovered new exit (range 5) 23124 | -5/Factory | Entered Upper Caves 23132 | -5/Upper Caves | Lost 10 parts (2p2n3u3w) 23154 | -5/Upper Caves | Learned location of 1 exit from Factory 23162 | -5/Upper Caves | Discovered new exit (range 16) 23170 | -5/Upper Caves | Entered another Upper Caves area 23179 | -5/Upper Caves | Discovered new exit (range 8) 23244 | -5/Upper Caves | Core integrity restored by X0-1V1 (+262) 23248 | -5/Upper Caves | Identified exit to Warlord 23248 | -5/Upper Caves | X0-1V1 revealed exit location to -5/Warlord 23321 | -5/Upper Caves | Entered Warlord 23398 | -5/Warlord | Build established: Mutant 23701 | -5/Warlord | Build established: Commander-Mutant 23751 | -5/Warlord | Learned Armory fabricator intel 23751 | -5/Warlord | Learned Armory recycling unit intel 23751 | -5/Warlord | Learned Armory scanalyzer intel 23751 | -5/Warlord | Learned Armory garrison access intel 23752 | -5/Warlord | Learned 4 Research zone layouts 23752 | -5/Warlord | Learned 4 Testing zone layouts 23752 | -5/Warlord | Learned 4 Command zone layouts 23752 | -5/Warlord | Learned Research stockpile data 23853 | -5/Warlord | Warlord's base attacked by MAIN.C 23902 | -5/Warlord | Met Warlord 23940 | -5/Warlord | Found Prototype Energy Cannon 23940 | -5/Warlord | Identified Vortex Driver 23944 | -5/Warlord | Found Vortex Driver 23946 | -5/Warlord | Identified exit to Proximity Caves 23946 | -5/Warlord | X0-1V1 revealed exit location to -4/Proximity Caves 23946 | -5/Warlord | X0-1V1 activates XOMVISION 24020 | -5/Warlord | Found Prototype Device 24020 | -5/Warlord | Identified System Purifier 24025 | -5/Warlord | Found Prototype Processor 24029 | -5/Warlord | Found Prototype Processor 24035 | -5/Warlord | Found Prototype Reactor 24043 | -5/Warlord | Found Prototype Hackware 24043 | -5/Warlord | Identified System Mapper 24193 | -5/Warlord | Lost 11 allies 24203 | -5/Warlord | Warlord forces counterattacked 24203 | -5/Warlord | Opened side exit 24222 | -5/Warlord | Spotted Striker 24287 | -5/Warlord | Lost 4 parts (2u2w) 24290 | -5/Warlord | Lost 3 allies 24406 | -5/Warlord | Lost 9 allies 24467 | -5/Warlord | Lost 3 allies 24475 | -5/Warlord | Spotted Striker 24528 | -5/Warlord | Warlord base infiltrated, sounded retreat 24529 | -5/Warlord | Enhanced Grunt warped into view 24529 | -5/Warlord | Enhanced Grunt warped into view 24529 | -5/Warlord | Enhanced Grunt warped into view 24529 | -5/Warlord | Enhanced Demolisher warped into view 24529 | -5/Warlord | Enhanced Demolisher warped into view 24529 | -5/Warlord | Enhanced Demolisher warped into view 24548 | -5/Warlord | Build established: Hacker-Mutant 24559 | -5/Warlord | Spotted Striker 24614 | -5/Warlord | Spotted Executioner 24676 | -5/Warlord | Lost 6 allies 24701 | -5/Warlord | Spotted Executioner 24707 | -5/Warlord | Spotted Striker 24711 | -5/Warlord | Entered Proximity Caves 24726 | -4/Proximity Caves | X0-1V1 mutated your Propulsion slot to Weapon slot 24739 | -4/Proximity Caves | Learned location of Armory (-3) 24763 | -4/Proximity Caves | Core integrity restored by X0-1V1 (+241) 24830 | -4/Proximity Caves | X0-1V1 sent allied Y-64 Sentinel (x3) 25024 | -4/Proximity Caves | Discovered new exit (range 9) 25040 | -4/Proximity Caves | Entered Factory 25040 | -4/Factory | Accompanied by 3 allies 25040 | -4/Factory | Evolved 2 slots: Propulsion x1, Utility x1 25041 | -4/Factory | Identified exit to Research 25112 | -4/Factory | Spotted B-86 Titan 25133 | -4/Factory | Build established: Hacker-Tank 25187 | -4/Factory | Lost 3 allies 25369 | -4/Factory | X0-1V1 announced a LAN party 25419 | -4/Factory | Entered Research 25419 | -3/Research | Evolved 2 slots: Power x1, Propulsion x1 25467 | -3/Research | Identified exit to DSF 25543 | -3/Research | Spotted B-86 Titan 25614 | -3/Research | Lost 4 parts (1p1n2w) 25723 | -3/Research | Discovered new exit (range 6) 25729 | -3/Research | Entered another Research area 25729 | -2/Research | Warlord forces began assault on 0b10 25729 | -2/Research | Evolved 2 slots: Utility x2 25730 | -2/Research | Identified exit to Quarantine 25730 | -2/Research | Identified Exp. Targeting Computer 25744 | -2/Research | X0-1V1 mutated your Weapon slot to Utility slot 25765 | -2/Research | Met up with Warlord 25839 | -2/Research | Research machine network offline 25855 | -2/Research | Discovered new exit (range 6) 26002 | -2/Research | Identified Exp. Core Analyzer 26105 | -2/Research | Found Prototype Processor 26106 | -2/Research | Identified Exp. Signal Interpreter 26113 | -2/Research | Found Exp. Signal Interpreter 26207 | -2/Research | Borebot progress halted 26210 | -2/Research | Found Exp. Core Analyzer 26222 | -2/Research | Spotted Executioner 26225 | -2/Research | Spotted Striker 26241 | -2/Research | X0-1V1 sent you to a vault 26249 | -2/Research | Borebot progress halted 26285 | -2/Research | P-80 Master assimilated allied Plague 9a 26294 | -2/Research | Build established: Scavenger-Gunner 26354 | -2/Research | Lost 4 allies 26461 | -2/Research | Entered Quarantine 26710 | -2/Quarantine | X0-1V1 sent you to a vault 26867 | -2/Quarantine | Found Quantum Capacitor 26887 | -2/Quarantine | P-80 Master assimilated allied Terminator 9c 27042 | -2/Quarantine | Discovered new exit (range 14) 27073 | -2/Quarantine | Entered Access 27073 | -1/Access | Evolved 2 slots: Power x1, Propulsion x1 27104 | -1/Access | Garrison activated, responded to threat 27173 | -1/Access | X0-1V1 added 0b10 threat records associated with you (minor) 27344 | -1/Access | X0-1V1 sent you into danger 27417 | -1/Access | X0-1V1 mutated your Utility slot to Propulsion slot 27627 | -1/Access | Build established: Scavenger-Mutant 27665 | -1/Access | Lost 7 parts (3p3n1u) 27686 | -1/Access | Garrison activated, responded to threat 27933 | -1/Access | Build established: Generator-Mutant 28162 | -1/Access | X0-1V1 whisked you away to safety 28272 | -1/Access | X0-1V1 activates XOMVISION 28470 | -1/Access | X0-1V1 mutated your Weapon slot to Utility slot 28652 | -1/Access | System corruption reached 10% 28836 | -1/Access | Spotted B-99 Colossus 28859 | -1/Access | Spotted B-99 Colossus 28910 | -1/Access | Lost 3 parts (3u) 28940 | -1/Access | Discovered new exit (range 3) 28942 | *** | Escaped! Last Messages --------------- G-73 Enforcer Hvy. Laser replaced by Hpw. Shock Rifle. B-74 Champion Powered Hammer replaced by Prototype Impact Weapon. G-73 Enforcer Phase Gun replaced by Adv. Variable Charge Gun. G-73 Enforcer Hvy. Laser replaced by Beamcaster. System corrupted: Heat flow error (+149). AIVCSSIL8D